[Event "17th Spilimbergo Open 2019"]
[Site "Spilimbergo"]
[Date "2019.08.09"]
[Round "1.9"]
[White "Dragnev, Valentin"]
[Black "Formento, Paolo"]
[Result "1-0"]
[WhiteElo "2535"]
[BlackElo "2237"]
[PlyCount "117"]
[EventDate "2019.08.09"]
[EventType "swiss"]
[EventCountry "ITA"]
[TimeControl "5400+30"]
[WhiteClock "0:01:52"]
[BlackClock "0:05:36"]

1. c4 {[%emt 0:00:30]} e6 {[%emt 0:00:30]} 2. Nf3 {[%emt 0:00:30]} Nf6 {[%emt 0:00:30]} 3. d4 {[%emt 0:00:30]} Bb4+ {[%emt 0:01:30]} 4. Bd2 {[%emt 0:00:00]} Bxd2+ {[%emt 0:02:30]} 5. Qxd2 {[%emt 0:00:00]} d5 {[%emt 0:00:30]} 6. g3 {[%emt 0:00:30]} O-O {[%emt 0:00:30]} 7. Bg2 {[%emt 0:00:30]} Qe7 {[%emt 0:01:30]} 8. O-O {[%emt 0:01:30]} Rd8 {[%emt 0:00:30]} 9. Qc2 {[%emt 0:07:30]} Nc6 {[%emt 0:06:30]} 10. Rd1 {[%emt 0:11:30]} dxc4 {[%emt 0:14:30]} 11. Na3 {[%emt 0:00:30]} Bd7 {[%emt 0:08:30]} 12. Nxc4 {[%emt 0:01:30]} Nb4 {[%emt 0:02:30]} 13. Qb3 {[%emt 0:00:30]} Bc6 {[%emt 0:06:30]} 14. a3 {[%emt 0:05:30]} Na6 {[%emt 0:00:30]} 15. Qc3 {[%emt 0:02:30]} Bd5 {[%emt 0:09:30]} 16. b4 {[%emt 0:07:30]} c6 {[%emt 0:02:30]} 17. Rac1 {[%emt 0:03:30]} Nc7 {[%emt 0:09:30]} 18. Na5 {[%emt 0:14:30]} Ne4 {[%emt 0:03:30]} 19. Qd3 {[%emt 0:05:30]} Nd6 {[%emt 0:01:30]} 20. Bh3 {[%emt 0:00:30]} Be4 {[%emt 0:01:30]} 21. Qb3 {[%emt 0:02:30]} Qe8 {[%emt 0:09:15]} 22. Nd2 {[%emt 0:08:30]} Bd5 {[%emt 0:05:14]} 23. Qc2 {[%emt 0:00:30]} f5 {[%emt 0:02:06]} 24. Bg2 {[%emt 0:08:08]} e5 {[%emt 0:03:09]} 25. e4 {[%emt 0:03:44]} fxe4 {[%emt 0:01:02]} 26. Nxe4 {[%emt 0:00:07]} Nxe4 {[%emt 0:03:03]} 27. Bxe4 {[%emt 0:00:02]} Bxe4 {[%emt 0:00:08]} 28. Qxe4 {[%emt 0:00:08]} Rxd4 {[%emt 0:00:16]} 29. Rxd4 {[%emt 0:00:44]} exd4 {[%emt 0:00:02]} 30. Qxd4 {[%emt 0:00:14]} Nb5 {[%emt 0:00:50]} 31. Qc4+ {[%emt 0:00:26]} Qf7 {[%emt 0:00:08]} 32. Nxb7 {[%emt 0:01:35]} Qxc4 {[%emt 0:00:22]} 33. Rxc4 {[%emt 0:00:02]} Nxa3 {[%emt 0:00:14]} 34. Rxc6 {[%emt 0:00:13]} Rb8 {[%emt 0:01:09]} 35. Nd6 {[%emt 0:01:22]} h6 {[%emt 0:02:04]} 36. Nf5 {[%emt 0:01:46]} Rxb4 {[%emt 0:02:42]} 37. Rc7 {[%emt 0:00:18]} Rg4 {[%emt 0:00:21]} 38. f3 {[%emt 0:03:26]} Rg5 {[%emt 0:00:19]} 39. g4 {[%emt 0:00:04]} Kf8 {[%emt 0:01:28]} 40. h4 {[%emt 0:03:59]} Rg6 {[%emt 0:00:07]} 41. h5 {[%emt 0:00:07]} Rg5 {[%emt 0:00:05]} 42. Kf2 {[%emt 0:02:21]} Nb5 {[%emt 0:00:06]} 43. Rc8+ {[%emt 0:00:20]} Kf7 {[%emt 0:00:10]} 44. Kg3 {[%emt 0:00:05]} Rxf5 {[%emt 0:01:10]} 45. gxf5 {[%emt 0:00:07]} Nd4 {[%emt 0:01:01]} 46. Kf4 {[%emt 0:00:40]} Kf6 {[%emt 0:00:43]} 47. Re8 {[%emt 0:01:22]} a5 {[%emt 0:00:24]} 48. Rf8+ {[%emt 0:00:38]} Ke7 {[%emt 0:00:03]} 49. Ra8 {[%emt 0:00:14]} Nc6 {[%emt 0:00:55]} 50. Ke4 {[%emt 0:00:08]} Kd6 {[%emt 0:00:29]} 51. Rg8 {[%emt 0:00:16]} a4 {[%emt 0:00:53]} 52. Rxg7 {[%emt 0:02:19]} a3 {[%emt 0:00:04]} 53. Rg8 {[%emt 0:00:26]} a2 {[%emt 0:00:55]} 54. Ra8 {[%emt 0:00:19]} Nb4 {[%emt 0:00:04]} 55. Ra7 {[%emt 0:00:13]} Nd5 {[%emt 0:00:12]} 56. Ra6+ {[%emt 0:00:06]} Kc5 {[%emt 0:00:12]} 57. Ke5 {[%emt 0:00:11]} Nb4 {[%emt 0:00:39]} 58. Rxa2 {[%emt 0:00:44]} Nxa2 {[%emt 0:00:04]} 59. f6 1-0

[Event "17th Spilimbergo Open 2019"]
[Site "Spilimbergo"]
[Date "2019.08.09"]
[Round "1.10"]
[White "Aroesti, Roee"]
[Black "Admiraal, Miguoel"]
[Result "1/2-1/2"]
[WhiteElo "2236"]
[BlackElo "2513"]
[PlyCount "68"]
[EventDate "2019.08.09"]
[EventType "swiss"]
[EventCountry "ITA"]
[TimeControl "5400+30"]
[WhiteClock "0:00:41"]
[BlackClock "0:02:58"]

1. e4 {[%emt 0:00:30]} c6 {[%emt 0:00:30]} 2. d4 {[%emt 0:00:30]} d5 {[%emt 0:00:00]} 3. exd5 {[%emt 0:00:00]} cxd5 {[%emt 0:00:00]} 4. Bd3 {[%emt 0:00:00]} Nf6 {[%emt 0:00:30]} 5. c3 {[%emt 0:00:30]} Bg4 {[%emt 0:00:30]} 6. Qb3 {[%emt 0:06:30]} Qc7 {[%emt 0:00:00]} 7. h3 {[%emt 0:02:30]} Bh5 {[%emt 0:02:00]} 8. Ne2 {[%emt 0:04:30]} Bg6 {[%emt 0:17:30]} 9. Nf4 {[%emt 0:12:30]} e6 {[%emt 0:10:30]} 10. Nxg6 {[%emt 0:08:30]} hxg6 {[%emt 0:00:30]} 11. Na3 {[%emt 0:01:30]} Nc6 {[%emt 0:01:30]} 12. Bf4 {[%emt 0:06:30]} Qd7 {[%emt 0:01:30]} 13. O-O {[%emt 0:12:30]} Be7 {[%emt 0:09:30]} 14. Nc2 {[%emt 0:02:30]} O-O {[%emt 0:03:30]} 15. a4 {[%emt 0:02:30]} Na5 {[%emt 0:11:30]} 16. Qa2 {[%emt 0:01:30]} Rfc8 {[%emt 0:01:30]} 17. Ne3 {[%emt 0:02:30]} Bd6 {[%emt 0:02:30]} 18. Be5 {[%emt 0:05:30]} Qc7 {[%emt 0:02:30]} 19. f4 {[%emt 0:04:30]} Nc6 {[%emt 0:09:30]} 20. Rac1 {[%emt 0:05:21]} Nh5 {[%emt 0:06:31]} 21. Rce1 {[%emt 0:03:19]} Ng3 {[%emt 0:04:31]} 22. Rf3 {[%emt 0:00:40]} Nf5 {[%emt 0:00:43]} 23. Nxf5 {[%emt 0:07:14]} gxf5 {[%emt 0:00:07]} 24. g4 {[%emt 0:01:40]} Bxe5 {[%emt 0:03:21]} 25. fxe5 {[%emt 0:00:19]} fxg4 {[%emt 0:01:43]} 26. hxg4 {[%emt 0:00:39]} Qe7 {[%emt 0:00:33]} 27. Rh3 {[%emt 0:01:52]} Qg5 {[%emt 0:01:17]} 28. Bh7+ {[%emt 0:01:41]} Kf8 {[%emt 0:00:16]} 29. Qa3+ {[%emt 0:02:47]} Ne7 {[%emt 0:00:54]} 30. Rf1 {[%emt 0:02:39]} Qxg4+ {[%emt 0:08:29]} 31. Kh2 {[%emt 0:00:01]} Qe2+ {[%emt 0:00:24]} 32. Kg1 {[%emt 0:00:02]} Qg4+ {[%emt 0:00:01]} 33. Kh2 {[%emt 0:00:13]} Qe2+ {[%emt 0:01:29]} 34. Kg1 {[%emt 0:00:05]} Qg4+ 1/2-1/2

[Event "17th Spilimbergo Open 2019"]
[Site "Spilimbergo"]
[Date "2019.08.09"]
[Round "1.11"]
[White "Keymer, Vincent"]
[Black "de Francesco, Klaus"]
[Result "0-1"]
[WhiteElo "2513"]
[BlackElo "2223"]
[PlyCount "90"]
[EventDate "2019.08.09"]
[EventType "swiss"]
[EventCountry "ITA"]
[TimeControl "5400+30"]
[WhiteClock "0:19:54"]
[BlackClock "0:14:01"]

1. d4 {[%emt 0:00:30]} Nf6 {[%emt 0:00:30]} 2. c4 {[%emt 0:00:00]} e6 {[%emt 0:00:00]} 3. Nf3 {[%emt 0:00:00]} b6 {[%emt 0:00:00]} 4. g3 {[%emt 0:00:00]} Bb4+ {[%emt 0:00:30]} 5. Nbd2 {[%emt 0:00:00]} Bb7 {[%emt 0:01:30]} 6. Bg2 {[%emt 0:00:30]} O-O {[%emt 0:00:30]} 7. O-O {[%emt 0:00:30]} d5 {[%emt 0:01:30]} 8. Ne5 {[%emt 0:01:30]} Nbd7 {[%emt 0:02:30]} 9. Qa4 {[%emt 0:00:30]} Bxd2 {[%emt 0:01:30]} 10. Bxd2 {[%emt 0:01:30]} Nxe5 {[%emt 0:01:30]} 11. dxe5 {[%emt 0:00:30]} Ne4 {[%emt 0:00:30]} 12. Bf4 {[%emt 0:09:30]} Nc5 {[%emt 0:05:30]} 13. Qc2 {[%emt 0:01:30]} dxc4 {[%emt 0:00:30]} 14. Bxb7 {[%emt 0:03:30]} Nxb7 {[%emt 0:01:30]} 15. Rfd1 {[%emt 0:04:30]} Qe7 {[%emt 0:00:30]} 16. Qxc4 {[%emt 0:00:30]} c5 {[%emt 0:05:30]} 17. Qa4 {[%emt 0:03:30]} Rfd8 {[%emt 0:01:30]} 18. Rxd8+ {[%emt 0:01:30]} Qxd8 {[%emt 0:04:30]} 19. Rd1 {[%emt 0:01:30]} Qc8 {[%emt 0:06:30]} 20. Rd7 {[%emt 0:07:30]} a6 {[%emt 0:02:30]} 21. Bg5 {[%emt 0:06:30]} h6 {[%emt 0:02:30]} 22. Bf6 {[%emt 0:02:30]} c4 {[%emt 0:05:30]} 23. Qd1 {[%emt 0:09:30]} gxf6 {[%emt 0:01:30]} 24. exf6 {[%emt 0:00:00]} Nc5 {[%emt 0:01:30]} 25. Re7 {[%emt 0:03:00]} Qc6 {[%emt 0:04:30]} 26. Qd2 {[%emt 0:03:30]} Qe4 {[%emt 0:00:30]} 27. Qxh6 {[%emt 0:01:30]} Qg6 {[%emt 0:00:00]} 28. Qxg6+ {[%emt 0:02:30]} fxg6 {[%emt 0:00:00]} 29. g4 {[%emt 0:01:30]} Rd8 {[%emt 0:15:30]} 30. g5 {[%emt 0:01:30]} Rd7 {[%emt 0:04:30]} 31. Re8+ {[%emt 0:00:30]} Kf7 {[%emt 0:00:30]} 32. Rh8 {[%emt 0:08:30]} e5 {[%emt 0:01:30]} 33. h4 {[%emt 0:01:30]} b5 {[%emt 0:05:30]} 34. a3 {[%emt 0:03:30]} a5 {[%emt 0:02:30]} 35. Rb8 {[%emt 0:04:18]} Rb7 {[%emt 0:00:30]} 36. Rh8 {[%emt 0:01:14]} b4 {[%emt 0:01:30]} 37. axb4 {[%emt 0:01:49]} axb4 {[%emt 0:00:00]} 38. h5 {[%emt 0:02:41]} gxh5 {[%emt 0:00:00]} 39. Rh7+ {[%emt 0:00:43]} Kg6 {[%emt 0:01:30]} 40. f7 {[%emt 0:00:55]} Rxf7 {[%emt 0:00:30]} 41. Rh6+ {[%emt 0:00:05]} Kxg5 {[%emt 0:00:30]} 42. Rc6 {[%emt 0:00:04]} c3 {[%emt 0:02:17]} 43. bxc3 {[%emt 0:00:41]} b3 {[%emt 0:00:13]} 44. Rxc5 {[%emt 0:00:49]} Rb7 {[%emt 0:00:06]} 45. Rxe5+ {[%emt 0:00:10]} Kf6 0-1

[Event "17th Spilimbergo Open 2019"]
[Site "Spilimbergo"]
[Date "2019.08.09"]
[Round "1.12"]
[White "Voyska, Margarita"]
[Black "Dvirnyy, Danyyil"]
[Result "1-0"]
[WhiteElo "2214"]
[BlackElo "2496"]
[PlyCount "55"]
[EventDate "2019.08.09"]
[EventType "swiss"]
[EventCountry "ITA"]
[TimeControl "5400+30"]
[WhiteClock "0:03:12"]
[BlackClock "0:06:08"]

1. Nf3 {[%emt 0:05:30]} d5 {[%emt 0:00:30]} 2. d4 {[%emt 0:00:30]} Nf6 {[%emt 0:01:30]} 3. e3 {[%emt 0:00:30]} c5 {[%emt 0:02:30]} 4. c4 {[%emt 0:01:30]} cxd4 {[%emt 0:00:30]} 5. exd4 {[%emt 0:02:30]} g6 {[%emt 0:00:30]} 6. Nc3 {[%emt 0:01:30]} Bg7 {[%emt 0:04:30]} 7. Qb3 {[%emt 0:08:30]} O-O {[%emt 0:02:30]} 8. cxd5 {[%emt 0:08:30]} Nbd7 {[%emt 0:01:30]} 9. Bg5 {[%emt 0:09:30]} Nb6 {[%emt 0:04:30]} 10. Bxf6 {[%emt 0:02:30]} exf6 {[%emt 0:04:30]} 11. Be2 {[%emt 0:00:30]} Qd6 {[%emt 0:12:30]} 12. O-O {[%emt 0:05:30]} Rd8 {[%emt 0:06:30]} 13. Rfe1 {[%emt 0:02:30]} Bf8 {[%emt 0:09:30]} 14. a3 {[%emt 0:02:30]} Kg7 {[%emt 0:01:30]} 15. Nd2 {[%emt 0:04:30]} Nxd5 {[%emt 0:03:30]} 16. Nxd5 {[%emt 0:03:30]} Qxd5 {[%emt 0:00:30]} 17. Bc4 {[%emt 0:00:30]} Qd7 {[%emt 0:06:30]} 18. Ne4 {[%emt 0:02:30]} h6 {[%emt 0:07:30]} 19. d5 {[%emt 0:02:30]} Qf5 {[%emt 0:08:30]} 20. d6 {[%emt 0:04:30]} Bxd6 {[%emt 0:06:50]} 21. Rad1 {[%emt 0:08:30]} Be7 {[%emt 0:02:30]} 22. Rxd8 {[%emt 0:00:30]} Bxd8 {[%emt 0:00:09]} 23. Bxf7 {[%emt 0:02:30]} Bb6 {[%emt 0:05:09]} 24. Bg8 {[%emt 0:02:07]} Qd7 {[%emt 0:02:14]} 25. Nd6 {[%emt 0:02:46]} h5 {[%emt 0:01:57]} 26. h4 {[%emt 0:01:24]} Kh6 {[%emt 0:01:18]} 27. Qg3 {[%emt 0:09:35]} Qg4 {[%emt 0:00:41]} 28. Re7 1-0

[Event "17th Spilimbergo Open 2019"]
[Site "Spilimbergo"]
[Date "2019.08.10"]
[Round "2.1"]
[White "Collutiis, Duilio"]
[Black "Nisipeanu, Liviu-Dieter"]
[Result "1/2-1/2"]
[WhiteElo "2402"]
[BlackElo "2666"]
[PlyCount "71"]
[EventDate "2019.08.09"]
[EventType "swiss"]
[EventCountry "ITA"]
[TimeControl "5400+30"]
[WhiteClock "0:24:00"]
[BlackClock "0:18:26"]

1. c4 {[%emt 0:00:30]} e6 {[%emt 0:02:30]} 2. g3 {[%emt 0:00:30]} d5 {[%emt 0:00:30]} 3. Bg2 {[%emt 0:00:30]} Nf6 {[%emt 0:02:30]} 4. Nf3 {[%emt 0:01:30]} d4 {[%emt 0:00:30]} 5. O-O {[%emt 0:00:30]} c5 {[%emt 0:00:30]} 6. e3 {[%emt 0:10:30]} Nc6 {[%emt 0:00:00]} 7. exd4 {[%emt 0:01:30]} cxd4 {[%emt 0:00:00]} 8. d3 {[%emt 0:00:30]} Bd6 {[%emt 0:00:00]} 9. a3 {[%emt 0:12:30]} a5 {[%emt 0:02:00]} 10. Bg5 {[%emt 0:00:30]} h6 {[%emt 0:00:00]} 11. Bxf6 {[%emt 0:00:30]} Qxf6 {[%emt 0:00:00]} 12. Nbd2 {[%emt 0:00:00]} Qe7 {[%emt 0:01:30]} 13. Ne4 {[%emt 0:08:00]} Bc7 {[%emt 0:00:30]} 14. b4 {[%emt 0:00:30]} axb4 {[%emt 0:10:30]} 15. axb4 {[%emt 0:00:30]} Rxa1 {[%emt 0:00:00]} 16. Qxa1 {[%emt 0:00:30]} Qxb4 {[%emt 0:05:00]} 17. Rb1 {[%emt 0:09:30]} Qa5 {[%emt 0:15:30]} 18. Qxa5 {[%emt 0:02:30]} Bxa5 {[%emt 0:00:00]} 19. Nd6+ {[%emt 0:01:30]} Ke7 {[%emt 0:00:00]} 20. Nxc8+ {[%emt 0:05:30]} Rxc8 {[%emt 0:00:30]} 21. Rxb7+ {[%emt 0:00:30]} Rc7 {[%emt 0:08:30]} 22. Rxc7+ {[%emt 0:00:30]} Bxc7 {[%emt 0:00:00]} 23. Nd2 {[%emt 0:05:30]} Ne5 {[%emt 0:04:00]} 24. Nb3 {[%emt 0:08:30]} Nxd3 {[%emt 0:00:30]} 25. Bf1 {[%emt 0:00:00]} Ne5 {[%emt 0:04:30]} 26. Nxd4 {[%emt 0:00:00]} Bb6 {[%emt 0:00:30]} 27. Nb3 {[%emt 0:00:30]} Kd6 {[%emt 0:00:00]} 28. Be2 {[%emt 0:00:30]} g5 {[%emt 0:00:00]} 29. h3 {[%emt 0:02:30]} f5 {[%emt 0:00:30]} 30. Kg2 {[%emt 0:00:30]} Nd7 {[%emt 0:01:30]} 31. Bf3 {[%emt 0:08:30]} Nf6 {[%emt 0:08:30]} 32. Bb7 {[%emt 0:01:16]} h5 {[%emt 0:06:30]} 33. Bc8 {[%emt 0:01:15]} Ne4 {[%emt 0:00:30]} 34. f3 {[%emt 0:00:39]} Nc5 {[%emt 0:06:30]} 35. Nxc5 {[%emt 0:00:24]} Bxc5 {[%emt 0:00:00]} 36. g4 1/2-1/2

[Event "17th Spilimbergo Open 2019"]
[Site "Spilimbergo"]
[Date "2019.08.10"]
[Round "2.2"]
[White "Veinberg, Nimrod"]
[Black "Kovalev, Vladislav"]
[Result "0-1"]
[WhiteElo "2394"]
[BlackElo "2651"]
[PlyCount "70"]
[EventDate "2019.08.09"]
[EventType "swiss"]
[EventCountry "ITA"]
[TimeControl "5400+30"]
[WhiteClock "0:12:14"]
[BlackClock "0:08:46"]

1. d4 {[%emt 0:00:30]} Nf6 {[%emt 0:00:30]} 2. c4 {[%emt 0:00:00]} e6 {[%emt 0:01:30]} 3. Nc3 {[%emt 0:01:00]} Bb4 {[%emt 0:00:00]} 4. Qc2 {[%emt 0:00:30]} b6 {[%emt 0:00:00]} 5. e4 {[%emt 0:00:30]} c5 {[%emt 0:00:30]} 6. d5 {[%emt 0:00:30]} exd5 {[%emt 0:06:30]} 7. exd5 {[%emt 0:01:30]} O-O {[%emt 0:00:30]} 8. Bd2 {[%emt 0:06:30]} Re8+ {[%emt 0:01:30]} 9. Be2 {[%emt 0:00:30]} d6 {[%emt 0:04:30]} 10. O-O-O {[%emt 0:02:30]} Nbd7 {[%emt 0:15:30]} 11. Nf3 {[%emt 0:02:30]} b5 {[%emt 0:00:30]} 12. cxb5 {[%emt 0:01:30]} Nb6 {[%emt 0:04:30]} 13. Rhe1 {[%emt 0:01:30]} Bb7 {[%emt 0:00:30]} 14. Ng5 {[%emt 0:17:30]} h6 {[%emt 0:06:30]} 15. Nh3 {[%emt 0:04:30]} Nbxd5 {[%emt 0:08:30]} 16. Nxd5 {[%emt 0:02:30]} Bxd5 {[%emt 0:02:30]} 17. Nf4 {[%emt 0:11:30]} Bxa2 {[%emt 0:05:30]} 18. Bf3 {[%emt 0:02:30]} d5 {[%emt 0:06:30]} 19. Rxe8+ {[%emt 0:14:30]} Qxe8 {[%emt 0:00:00]} 20. Bc3 {[%emt 0:01:30]} Bxc3 {[%emt 0:02:00]} 21. bxc3 {[%emt 0:04:30]} Bc4 {[%emt 0:00:30]} 22. Nxd5 {[%emt 0:00:30]} Bxd5 {[%emt 0:00:30]} 23. Bxd5 {[%emt 0:01:30]} Nxd5 {[%emt 0:00:00]} 24. Rxd5 {[%emt 0:00:30]} Qxb5 {[%emt 0:00:00]} 25. Rd3 {[%emt 0:05:46]} Rb8 {[%emt 0:00:30]} 26. Kd2 {[%emt 0:00:25]} a5 {[%emt 0:00:30]} 27. c4 {[%emt 0:01:36]} Qc6 {[%emt 0:08:30]} 28. Rd5 {[%emt 0:01:03]} a4 {[%emt 0:00:30]} 29. Qf5 {[%emt 0:03:30]} a3 {[%emt 0:10:49]} 30. Rxc5 {[%emt 0:01:49]} Qd6+ {[%emt 0:00:54]} 31. Kc3 {[%emt 0:02:09]} g6 {[%emt 0:01:30]} 32. Qe5 {[%emt 0:00:15]} a2 {[%emt 0:02:15]} 33. Qxd6 {[%emt 0:00:47]} a1=Q+ {[%emt 0:00:04]} 34. Kd2 {[%emt 0:00:19]} Rb2+ {[%emt 0:00:14]} 35. Ke3 {[%emt 0:00:05]} Qe1+ 0-1

[Event "17th Spilimbergo Open 2019"]
[Site "Spilimbergo"]
[Date "2019.08.10"]
[Round "2.3"]
[White "Bosiocic, Marin"]
[Black "Di Benedetto, Edoardo"]
[Result "1-0"]
[WhiteElo "2611"]
[BlackElo "2399"]
[PlyCount "95"]
[EventDate "2019.08.09"]
[EventType "swiss"]
[EventCountry "ITA"]
[TimeControl "5400+30"]
[WhiteClock "0:01:39"]
[BlackClock "0:20:00"]

1. d4 {[%emt 0:00:30]} d5 {[%emt 0:07:30]} 2. c4 {[%emt 0:00:00]} e6 {[%emt 0:00:30]} 3. Nf3 {[%emt 0:00:00]} Nf6 {[%emt 0:00:00]} 4. g3 {[%emt 0:00:00]} Be7 {[%emt 0:00:00]} 5. Bg2 {[%emt 0:00:00]} O-O {[%emt 0:00:30]} 6. O-O {[%emt 0:00:30]} dxc4 {[%emt 0:00:00]} 7. Qc2 {[%emt 0:00:00]} a6 {[%emt 0:00:00]} 8. a4 {[%emt 0:00:00]} Bd7 {[%emt 0:01:30]} 9. Rd1 {[%emt 0:00:30]} Bc6 {[%emt 0:00:00]} 10. Bg5 {[%emt 0:00:30]} Bxf3 {[%emt 0:00:00]} 11. Bxf3 {[%emt 0:00:00]} Nc6 {[%emt 0:00:30]} 12. Qxc4 {[%emt 0:03:00]} Nd5 {[%emt 0:12:30]} 13. Bxe7 {[%emt 0:02:30]} Qxe7 {[%emt 0:03:30]} 14. a5 {[%emt 0:00:30]} Rfd8 {[%emt 0:09:30]} 15. Nc3 {[%emt 0:01:30]} Qb4 {[%emt 0:03:30]} 16. Qxb4 {[%emt 0:01:30]} Ndxb4 {[%emt 0:01:30]} 17. e3 {[%emt 0:04:30]} Rac8 {[%emt 0:13:30]} 18. g4 {[%emt 0:01:30]} Kf8 {[%emt 0:03:30]} 19. g5 {[%emt 0:05:30]} h6 {[%emt 0:04:30]} 20. h4 {[%emt 0:00:30]} Ke7 {[%emt 0:02:30]} 21. Kf1 {[%emt 0:00:30]} hxg5 {[%emt 0:06:30]} 22. hxg5 {[%emt 0:00:30]} Rh8 {[%emt 0:01:30]} 23. Ke2 {[%emt 0:00:30]} Rh2 {[%emt 0:05:30]} 24. Ra4 {[%emt 0:01:30]} Rd8 {[%emt 0:01:30]} 25. Rc1 {[%emt 0:38:30]} f5 {[%emt 0:08:54]} 26. gxf6+ {[%emt 0:00:30]} gxf6 {[%emt 0:00:05]} 27. Ne4 {[%emt 0:00:30]} b6 {[%emt 0:00:43]} 28. Nd2 {[%emt 0:03:30]} b5 {[%emt 0:01:52]} 29. Ra3 {[%emt 0:01:30]} Rd6 {[%emt 0:03:13]} 30. Ne4 {[%emt 0:00:30]} Rd8 {[%emt 0:00:31]} 31. Nc5 {[%emt 0:00:30]} Nb8 {[%emt 0:00:31]} 32. Rb3 {[%emt 0:06:30]} Nd5 {[%emt 0:00:46]} 33. Nb7 {[%emt 0:05:30]} Rd7 {[%emt 0:03:28]} 34. Bxd5 {[%emt 0:00:30]} exd5 {[%emt 0:00:17]} 35. Rg1 {[%emt 0:00:30]} Kf7 {[%emt 0:00:12]} 36. Rc3 {[%emt 0:00:00]} Rh8 {[%emt 0:02:19]} 37. Nc5 {[%emt 0:01:00]} Rdd8 {[%emt 0:00:25]} 38. Nd3 {[%emt 0:00:00]} c6 {[%emt 0:00:06]} 39. Nb4 {[%emt 0:00:00]} Rd6 {[%emt 0:00:04]} 40. Rgc1 {[%emt 0:01:30]} Rc8 {[%emt 0:01:06]} 41. Rh1 {[%emt 0:00:30]} Rg8 {[%emt 0:01:01]} 42. Kf3 {[%emt 0:00:30]} Ke6 {[%emt 0:01:02]} 43. Rcc1 {[%emt 0:01:30]} Rc8 {[%emt 0:01:02]} 44. Nd3 {[%emt 0:00:30]} Nd7 {[%emt 0:02:19]} 45. Rcg1 {[%emt 0:01:30]} Rf8 {[%emt 0:01:22]} 46. Rg7 {[%emt 0:01:36]} Rf7 {[%emt 0:00:32]} 47. Nf4+ {[%emt 0:00:24]} Ke7 {[%emt 0:00:01]} 48. Ng6+ 1-0

[Event "17th Spilimbergo Open 2019"]
[Site "Spilimbergo"]
[Date "2019.08.10"]
[Round "2.4"]
[White "Morozov, Nichita"]
[Black "Basso, Pier Luigi"]
[Result "1/2-1/2"]
[WhiteElo "2389"]
[BlackElo "2576"]
[PlyCount "133"]
[EventDate "2019.08.09"]
[EventType "swiss"]
[EventCountry "ITA"]
[TimeControl "5400+30"]
[WhiteClock "0:01:10"]
[BlackClock "0:02:21"]

1. d4 {[%emt 0:00:30]} g6 {[%emt 0:05:30]} 2. e4 {[%emt 0:00:30]} Bg7 {[%emt 0:00:00]} 3. c4 {[%emt 0:05:30]} e6 {[%emt 0:00:00]} 4. Nc3 {[%emt 0:03:30]} Ne7 {[%emt 0:00:30]} 5. Be2 {[%emt 0:03:30]} d5 {[%emt 0:00:00]} 6. cxd5 {[%emt 0:14:30]} exd5 {[%emt 0:00:00]} 7. exd5 {[%emt 0:00:30]} Nxd5 {[%emt 0:07:30]} 8. Nf3 {[%emt 0:00:00]} O-O {[%emt 0:01:30]} 9. O-O {[%emt 0:01:00]} h6 {[%emt 0:10:30]} 10. Qb3 {[%emt 0:01:30]} Nb6 {[%emt 0:02:30]} 11. d5 {[%emt 0:03:30]} c6 {[%emt 0:06:30]} 12. Be3 {[%emt 0:08:30]} Nxd5 {[%emt 0:01:30]} 13. Rfd1 {[%emt 0:03:30]} Nxc3 {[%emt 0:10:30]} 14. Rxd8 {[%emt 0:01:30]} Nxe2+ {[%emt 0:00:30]} 15. Kf1 {[%emt 0:00:30]} Rxd8 {[%emt 0:00:30]} 16. Kxe2 {[%emt 0:00:00]} b6 {[%emt 0:05:30]} 17. Rd1 {[%emt 0:04:00]} Nd7 {[%emt 0:02:30]} 18. Ke1 {[%emt 0:11:30]} Bb7 {[%emt 0:04:30]} 19. Rd6 {[%emt 0:01:30]} Nf8 {[%emt 0:01:30]} 20. Rxd8 {[%emt 0:03:30]} Rxd8 {[%emt 0:00:30]} 21. Qa3 {[%emt 0:01:30]} Ra8 {[%emt 0:11:30]} 22. Qe7 {[%emt 0:01:30]} Bc8 {[%emt 0:00:30]} 23. Bd4 {[%emt 0:01:30]} Bxd4 {[%emt 0:04:30]} 24. Nxd4 {[%emt 0:02:30]} Bd7 {[%emt 0:00:00]} 25. Qd6 {[%emt 0:04:30]} Re8+ {[%emt 0:01:00]} 26. Kd2 {[%emt 0:00:30]} c5 {[%emt 0:00:00]} 27. Nc2 {[%emt 0:01:30]} Bb5 {[%emt 0:02:00]} 28. Ne3 {[%emt 0:02:44]} Ne6 {[%emt 0:00:00]} 29. Kc1 {[%emt 0:01:32]} Nd4 {[%emt 0:04:51]} 30. Qc7 {[%emt 0:01:22]} Ne2+ {[%emt 0:01:59]} 31. Kd2 {[%emt 0:01:53]} Re4 {[%emt 0:01:47]} 32. b3 {[%emt 0:10:11]} Rd4+ {[%emt 0:00:39]} 33. Kc2 {[%emt 0:00:17]} Bd3+ {[%emt 0:04:03]} 34. Kb2 {[%emt 0:02:11]} Bb5 {[%emt 0:02:33]} 35. Qb8+ {[%emt 0:01:22]} Kh7 {[%emt 0:01:34]} 36. Nc4 {[%emt 0:01:04]} Bxc4 {[%emt 0:00:32]} 37. bxc4 {[%emt 0:00:02]} Rd2+ {[%emt 0:00:37]} 38. Kb3 {[%emt 0:01:02]} Nd4+ {[%emt 0:00:38]} 39. Ka3 {[%emt 0:00:14]} Nc2+ {[%emt 0:05:14]} 40. Ka4 {[%emt 0:01:14]} Nd4 {[%emt 0:00:13]} 41. Ka3 {[%emt 0:00:08]} Rxf2 {[%emt 0:01:56]} 42. Qxa7 {[%emt 0:00:03]} Rf6 {[%emt 0:00:17]} 43. Qe7 {[%emt 0:00:20]} Kg7 {[%emt 0:00:16]} 44. Qe5 {[%emt 0:00:07]} Nc6 {[%emt 0:00:02]} 45. Qd5 {[%emt 0:01:05]} Re6 {[%emt 0:00:08]} 46. Ka4 {[%emt 0:00:30]} Nd4 {[%emt 0:00:03]} 47. Qb7 {[%emt 0:01:10]} Re2 {[%emt 0:00:14]} 48. a3 {[%emt 0:00:56]} Re6 {[%emt 0:01:41]} 49. h3 {[%emt 0:00:10]} Ne2 {[%emt 0:01:27]} 50. Kb3 {[%emt 0:01:26]} Nd4+ {[%emt 0:00:22]} 51. Ka4 {[%emt 0:00:13]} h5 {[%emt 0:00:14]} 52. g4 {[%emt 0:00:08]} hxg4 {[%emt 0:00:48]} 53. hxg4 {[%emt 0:00:01]} Nc2 {[%emt 0:01:01]} 54. Kb3 {[%emt 0:00:33]} Nd4+ {[%emt 0:00:27]} 55. Ka4 {[%emt 0:00:05]} Nc2 {[%emt 0:00:02]} 56. Kb3 {[%emt 0:00:00]} Ne3 {[%emt 0:00:17]} 57. g5 {[%emt 0:00:21]} Nf5 {[%emt 0:00:32]} 58. Qc7 {[%emt 0:00:33]} Nd4+ {[%emt 0:01:59]} 59. Ka4 {[%emt 0:00:01]} Nf5 {[%emt 0:00:06]} 60. Kb3 {[%emt 0:00:04]} Nd6 {[%emt 0:01:21]} 61. Qxb6 {[%emt 0:01:25]} Re3+ {[%emt 0:00:13]} 62. Kc2 {[%emt 0:01:08]} Nxc4 {[%emt 0:00:15]} 63. Qxc5 {[%emt 0:02:09]} Nxa3+ {[%emt 0:00:04]} 64. Kd1 {[%emt 0:00:00]} Rh3 {[%emt 0:01:20]} 65. Qd4+ {[%emt 0:00:18]} Kg8 {[%emt 0:00:26]} 66. Qd8+ {[%emt 0:00:07]} Kg7 {[%emt 0:00:09]} 67. Qd4+ 1/2-1/2